[Event "Late-Titled-Tuesday-Blitz-January-16-2024"]
[Site "Chess.com"]
[Date "2024.01.16"]
[Round "7"]
[White "mishanick"]
[Black "Hikaru"]
[Result "1-0"]
[WhiteElo "3109"]
[BlackElo "3223"]
[TimeControl "180+1"]
[EndTime "15:17:40 PST"]
[Termination "mishanick won by resignation"]

1. d4 {[%clk 0:03:00.9]} 1... Nf6 {[%clk 0:02:55.1]} 2. c4 {[%clk 0:03:01.5]}
2... b6 {[%clk 0:02:55.4]} 3. Nc3 {[%clk 0:03:00.2]} 3... Bb7 {[%clk 0:02:55.7]}
4. f3 {[%clk 0:02:54.7]} 4... d5 {[%clk 0:02:55.7]} 5. cxd5 {[%clk 0:02:54.6]}
5... Nxd5 {[%clk 0:02:56.6]} 6. e4 {[%clk 0:02:55.2]} 6... Nxc3 {[%clk 0:02:57]}
7. bxc3 {[%clk 0:02:56.1]} 7... e6 {[%clk 0:02:57.6]} 8. Bb5+ {[%clk 0:02:52.1]}
8... Nd7 {[%clk 0:02:57.5]} 9. Ne2 {[%clk 0:02:52.1]} 9... a6 {[%clk 0:02:57.6]}
10. Bd3 {[%clk 0:02:52.5]} 10... c5 {[%clk 0:02:58]} 11. O-O {[%clk 0:02:52.4]}
11... Be7 {[%clk 0:02:57.2]} 12. Be3 {[%clk 0:02:52.4]} 12... O-O {[%clk
0:02:55.4]} 13. a4 {[%clk 0:02:52.5]} 13... Qc7 {[%clk 0:02:54.9]} 14. Qd2
{[%clk 0:02:52.5]} 14... Rfd8 {[%clk 0:02:54]} 15. Rfd1 {[%clk 0:02:42.7]} 15...
Rac8 {[%clk 0:02:53.1]} 16. Qb2 {[%clk 0:02:40.6]} 16... Qb8 {[%clk 0:02:47.9]}
17. Rac1 {[%clk 0:02:30.5]} 17... Qa8 {[%clk 0:02:43.1]} 18. Bb1 {[%clk
0:02:22.1]} 18... Bc6 {[%clk 0:02:37.3]} 19. Bc2 {[%clk 0:02:18.5]} 19... b5
{[%clk 0:02:31]} 20. axb5 {[%clk 0:02:18.6]} 20... Bxb5 {[%clk 0:02:17.6]} 21.
Ng3 {[%clk 0:02:01.1]} 21... Nb6 {[%clk 0:02:17.7]} 22. Bb3 {[%clk 0:01:38.5]}
22... Nc4 {[%clk 0:01:49.4]} 23. Bxc4 {[%clk 0:01:38.4]} 23... Bxc4 {[%clk
0:01:50.3]} 24. dxc5 {[%clk 0:01:38.7]} 24... Rxd1+ {[%clk 0:01:35.1]} 25. Rxd1
{[%clk 0:01:39.6]} 25... a5 {[%clk 0:01:35.5]} 26. Nh5 {[%clk 0:01:30.8]} 26...
Bf8 {[%clk 0:01:33.3]} 27. Bd4 {[%clk 0:01:18.2]} 27... Rd8 {[%clk 0:01:14.3]}
28. Ra1 {[%clk 0:01:06.7]} 28... a4 {[%clk 0:01:14.5]} 29. Qf2 {[%clk
0:00:59.9]} 29... f6 {[%clk 0:01:14.5]} 30. Qg3 {[%clk 0:00:49.6]} 30... Kh8
{[%clk 0:00:42]} 31. Nxf6 {[%clk 0:00:30.7]} 31... Rxd4 {[%clk 0:00:40.3]} 32.
cxd4 {[%clk 0:00:31.3]} 32... gxf6 {[%clk 0:00:40.6]} 33. Qe1 {[%clk 0:00:31.1]}
33... Bb3 {[%clk 0:00:37.4]} 34. Qb4 {[%clk 0:00:30.9]} 34... Qc8 {[%clk
0:00:28.5]} 35. Rc1 {[%clk 0:00:28.3]} 35... Qd8 {[%clk 0:00:20]} 36. h3 {[%clk
0:00:21]} 36... f5 {[%clk 0:00:19.9]} 37. Kh1 {[%clk 0:00:18.5]} 37... fxe4
{[%clk 0:00:20]} 38. fxe4 {[%clk 0:00:19.4]} 38... Bh6 {[%clk 0:00:20.1]} 39.
Rf1 {[%clk 0:00:18.7]} 39... Bf8 {[%clk 0:00:13.8]} 40. Qc3 {[%clk 0:00:16.4]}
40... Bg7 {[%clk 0:00:14.1]} 41. c6 {[%clk 0:00:16.5]} 41... Qc7 {[%clk
0:00:14.3]} 42. Qc5 {[%clk 0:00:15.9]} 42... h6 {[%clk 0:00:13.8]} 43. d5 {[%clk
0:00:15.1]} 43... exd5 {[%clk 0:00:14.5]} 44. exd5 {[%clk 0:00:16]} 44... Qg3
{[%clk 0:00:13.6]} 45. c7 {[%clk 0:00:15]} 1-0

[Event "Late-Titled-Tuesday-Blitz-January-16-2024"]
[Site "Chess.com"]
[Date "2024.01.16"]
[Round "7"]
[White "Bryanl106"]
[Black "Redzishchess"]
[Result "0-1"]
[WhiteElo "2583"]
[BlackElo "2475"]
[TimeControl "180+1"]
[EndTime "15:17:46 PST"]
[Termination "Redzishchess won by checkmate"]

1. e4 {[%clk 0:03:00.9]} 1... c5 {[%clk 0:03:00]} 2. Nf3 {[%clk 0:03:00.9]} 2...
d6 {[%clk 0:03:00.6]} 3. d4 {[%clk 0:03:01.6]} 3... cxd4 {[%clk 0:03:01.5]} 4.
Nxd4 {[%clk 0:03:02.4]} 4... Nf6 {[%clk 0:03:01.6]} 5. Nc3 {[%clk 0:03:03.1]}
5... g6 {[%clk 0:03:02.5]} 6. Be3 {[%clk 0:03:02.3]} 6... Bg7 {[%clk 0:03:02.8]}
7. f3 {[%clk 0:03:02.7]} 7... O-O {[%clk 0:03:03.3]} 8. Qd2 {[%clk 0:03:03.3]}
8... Nc6 {[%clk 0:03:03.3]} 9. O-O-O {[%clk 0:03:03.8]} 9... d5 {[%clk
0:03:03.6]} 10. Qe1 {[%clk 0:03:04]} 10... e5 {[%clk 0:02:48]} 11. Nxc6 {[%clk
0:03:03.4]} 11... bxc6 {[%clk 0:02:48.9]} 12. exd5 {[%clk 0:03:04]} 12... Nxd5
{[%clk 0:02:49.6]} 13. Bc4 {[%clk 0:03:03.8]} 13... Be6 {[%clk 0:02:48.4]} 14.
Kb1 {[%clk 0:03:03.3]} 14... Qd7 {[%clk 0:02:23.5]} 15. Ne4 {[%clk 0:03:01.9]}
15... Rfd8 {[%clk 0:02:03.9]} 16. Bg5 {[%clk 0:02:39.8]} 16... Rab8 {[%clk
0:01:10.4]} 17. Nf6+ {[%clk 0:02:16.9]} 17... Bxf6 {[%clk 0:01:05.5]} 18. Bxf6
{[%clk 0:02:16.1]} 18... Nc3+ {[%clk 0:01:03.2]} 19. Kc1 {[%clk 0:02:02.6]}
19... Nxd1 {[%clk 0:00:32]} 20. Bb3 {[%clk 0:00:32.1]} 20... Bxb3 {[%clk
0:00:11.1]} 21. axb3 {[%clk 0:00:33]} 21... Qf5 {[%clk 0:00:06.2]} 22. Bxd8
{[%clk 0:00:14.7]} 22... Rxd8 {[%clk 0:00:05.2]} 23. Qh4 {[%clk 0:00:15.3]}
23... g5 {[%clk 0:00:01.3]} 24. Qe1 {[%clk 0:00:07.2]} 24... Qf4+ {[%clk
0:00:01.7]} 25. Kb1 {[%clk 0:00:07]} 25... Qd2 {[%clk 0:00:01.5]} 26. Qxd2
{[%clk 0:00:06.3]} 26... Rxd2 {[%clk 0:00:02.4]} 27. Kc1 {[%clk 0:00:07.1]}
27... Rxg2 {[%clk 0:00:02]} 28. Kxd1 {[%clk 0:00:05.1]} 28... Rf2 {[%clk
0:00:01.8]} 29. Rg1 {[%clk 0:00:04.8]} 29... f6 {[%clk 0:00:01.8]} 30. h4 {[%clk
0:00:05.1]} 30... h6 {[%clk 0:00:01.9]} 31. hxg5 {[%clk 0:00:06]} 31... hxg5
{[%clk 0:00:02.8]} 32. Rg4 {[%clk 0:00:06.5]} 32... Rxf3 {[%clk 0:00:02.1]} 33.
Ra4 {[%clk 0:00:06.3]} 33... f5 {[%clk 0:00:01.4]} 34. Ke2 {[%clk 0:00:05.5]}
34... g4 {[%clk 0:00:02.3]} 35. Rxa7 {[%clk 0:00:05.7]} 35... f4 {[%clk
0:00:02.1]} 36. Rc7 {[%clk 0:00:05.7]} 36... Re3+ {[%clk 0:00:03]} 37. Kf2
{[%clk 0:00:05.9]} 37... g3+ {[%clk 0:00:03.9]} 38. Kg2 {[%clk 0:00:06.5]} 38...
Re2+ {[%clk 0:00:04.5]} 39. Kg1 {[%clk 0:00:07]} 39... f3 {[%clk 0:00:04.6]} 40.
Rc8+ {[%clk 0:00:05.7]} 40... Kf7 {[%clk 0:00:04.6]} 41. Rc7+ {[%clk 0:00:06.5]}
41... Ke8 {[%clk 0:00:04.5]} 42. Rg7 {[%clk 0:00:06.6]} 42... Re1# {[%clk
0:00:04.6]} 0-1

[Event "Late-Titled-Tuesday-Blitz-January-16-2024"]
[Site "Chess.com"]
[Date "2024.01.16"]
[Round "7"]
[White "ccccvhhhj"]
[Black "SilencerBaba"]
[Result "1-0"]
[WhiteElo "2509"]
[BlackElo "2310"]
[TimeControl "180+1"]
[EndTime "15:17:57 PST"]
[Termination "ccccvhhhj won on time"]

1. e4 {[%clk 0:03:00.9]} 1... c5 {[%clk 0:02:57.2]} 2. Nf3 {[%clk 0:03:01.3]}
2... e6 {[%clk 0:02:57]} 3. b4 {[%clk 0:03:01.2]} 3... cxb4 {[%clk 0:02:53.5]}
4. a3 {[%clk 0:03:01.9]} 4... Nf6 {[%clk 0:02:52.9]} 5. e5 {[%clk 0:03:00.5]}
5... Nd5 {[%clk 0:02:52.9]} 6. axb4 {[%clk 0:03:01.4]} 6... Bxb4 {[%clk
0:02:49.8]} 7. c3 {[%clk 0:03:02]} 7... Be7 {[%clk 0:02:41.1]} 8. d4 {[%clk
0:03:01.9]} 8... d6 {[%clk 0:02:33.7]} 9. Bd3 {[%clk 0:03:01.9]} 9... Nd7 {[%clk
0:02:32]} 10. O-O {[%clk 0:03:00.9]} 10... dxe5 {[%clk 0:02:30.2]} 11. dxe5
{[%clk 0:03:01.8]} 11... Qc7 {[%clk 0:02:29.8]} 12. Re1 {[%clk 0:02:56.9]} 12...
Nxc3 {[%clk 0:02:26.3]} 13. Nxc3 {[%clk 0:02:56.8]} 13... Qxc3 {[%clk
0:02:26.7]} 14. Rb1 {[%clk 0:02:49]} 14... O-O {[%clk 0:02:17]} 15. Re3 {[%clk
0:02:29.3]} 15... Qc7 {[%clk 0:02:15.7]} 16. h4 {[%clk 0:02:23]} 16... Rd8
{[%clk 0:02:06.6]} 17. Qe2 {[%clk 0:01:34.2]} 17... b6 {[%clk 0:02:05.6]} 18.
Ng5 {[%clk 0:01:30.1]} 18... Nf8 {[%clk 0:01:59.5]} 19. Rg3 {[%clk 0:01:13.1]}
19... Bb7 {[%clk 0:01:04]} 20. Bf4 {[%clk 0:01:12.3]} 20... Rd4 {[%clk
0:00:58.7]} 21. Qg4 {[%clk 0:00:49.4]} 21... g6 {[%clk 0:00:44.2]} 22. h5 {[%clk
0:00:34.6]} 22... Rad8 {[%clk 0:00:44]} 23. hxg6 {[%clk 0:00:34]} 23... hxg6
{[%clk 0:00:25.1]} 24. Nxf7 {[%clk 0:00:34.3]} 24... Rxd3 {[%clk 0:00:19.2]} 25.
Nh6+ {[%clk 0:00:29.9]} 25... Kg7 {[%clk 0:00:13.1]} 26. Be3 {[%clk 0:00:24]}
26... Qxe5 {[%clk 0:00:11.7]} 27. Bf4 {[%clk 0:00:14]} 27... Qe4 {[%clk
0:00:09.1]} 28. Rc1 {[%clk 0:00:09.6]} 28... R3d4 {[%clk 0:00:07.3]} 29. Rc7
{[%clk 0:00:04.1]} 29... Rd1+ {[%clk 0:00:05.7]} 30. Kh2 {[%clk 0:00:04.1]}
30... R8d7 {[%clk 0:00:05.9]} 31. Rxd7 {[%clk 0:00:04.2]} 31... Rxd7 {[%clk
0:00:05.8]} 32. f3 {[%clk 0:00:02.3]} 32... Qd5 {[%clk 0:00:04.1]} 33. Qh3
{[%clk 0:00:02.6]} 33... e5 {[%clk 0:00:01.6]} 34. Ng4 {[%clk 0:00:03.3]} 34...
Qg8 {[%clk 0:00:01.2]} 35. Qh6+ {[%clk 0:00:03.7]} 35... Kf7 {[%clk 0:00:01.6]}
36. Nxe5+ {[%clk 0:00:04.3]} 36... Ke8 {[%clk 0:00:01.7]} 37. Nxd7 {[%clk
0:00:05.2]} 37... Kxd7 {[%clk 0:00:02.1]} 38. Qh3+ {[%clk 0:00:05.5]} 38... Qe6
{[%clk 0:00:02.4]} 39. Qh4 {[%clk 0:00:03.8]} 39... Qf5 {[%clk 0:00:02.1]} 40.
Bg5 {[%clk 0:00:03.7]} 40... Bd6 {[%clk 0:00:01.9]} 41. f4 {[%clk 0:00:03.3]}
41... Qe4 {[%clk 0:00:01.7]} 42. Bf6 {[%clk 0:00:02.5]} 1-0

[Event "Late-Titled-Tuesday-Blitz-January-16-2024"]
[Site "Chess.com"]
[Date "2024.01.16"]
[Round "7"]
[White "FredddieCroderg"]
[Black "Statham_01"]
[Result "1-0"]
[WhiteElo "2376"]
[BlackElo "2525"]
[TimeControl "180+1"]
[EndTime "15:18:00 PST"]
[Termination "FredddieCroderg won by checkmate"]

1. e4 {[%clk 0:03:00.9]} 1... a6 {[%clk 0:02:50.9]} 2. d4 {[%clk 0:02:59.7]}
2... b5 {[%clk 0:02:51.2]} 3. Bd3 {[%clk 0:02:57.9]} 3... Bb7 {[%clk 0:02:51.8]}
4. Qe2 {[%clk 0:02:52.5]} 4... e6 {[%clk 0:02:52.2]} 5. f4 {[%clk 0:02:49.9]}
5... d5 {[%clk 0:02:52.5]} 6. e5 {[%clk 0:02:49.4]} 6... Nd7 {[%clk 0:02:53]} 7.
c3 {[%clk 0:02:48.2]} 7... c5 {[%clk 0:02:53.6]} 8. Nf3 {[%clk 0:02:46.8]} 8...
Nh6 {[%clk 0:02:53]} 9. O-O {[%clk 0:02:45.4]} 9... g6 {[%clk 0:02:53.2]} 10.
Ng5 {[%clk 0:02:38.2]} 10... cxd4 {[%clk 0:02:48.5]} 11. cxd4 {[%clk 0:02:37.3]}
11... Nf5 {[%clk 0:02:48]} 12. Bxf5 {[%clk 0:02:34.5]} 12... gxf5 {[%clk
0:02:47.3]} 13. Qh5 {[%clk 0:02:32.9]} 13... Qe7 {[%clk 0:02:46.8]} 14. a4
{[%clk 0:02:21.5]} 14... b4 {[%clk 0:02:40.7]} 15. Nd2 {[%clk 0:02:18.9]} 15...
O-O-O {[%clk 0:02:34.3]} 16. Nb3 {[%clk 0:02:17]} 16... f6 {[%clk 0:02:19.9]}
17. exf6 {[%clk 0:02:06]} 17... Nxf6 {[%clk 0:02:20.8]} 18. Qe2 {[%clk
0:02:03.7]} 18... Ne4 {[%clk 0:02:13.3]} 19. Nxe4 {[%clk 0:02:02.2]} 19... dxe4
{[%clk 0:02:14.2]} 20. Nc5 {[%clk 0:02:01.2]} 20... Bg7 {[%clk 0:01:47.3]} 21.
Be3 {[%clk 0:01:53.4]} 21... Bxd4 {[%clk 0:01:40.7]} 22. Bxd4 {[%clk 0:01:52.9]}
22... Rxd4 {[%clk 0:01:41.6]} 23. Rfc1 {[%clk 0:01:47.8]} 23... Kb8 {[%clk
0:01:26.8]} 24. Nxa6+ {[%clk 0:01:44.5]} 24... Bxa6 {[%clk 0:01:03.1]} 25. Qxa6
{[%clk 0:01:42.1]} 25... Qa7 {[%clk 0:01:03.7]} 26. Qb5+ {[%clk 0:01:28.2]}
26... Ka8 {[%clk 0:01:01.8]} 27. Rc5 {[%clk 0:01:11.5]} 27... Rd6 {[%clk
0:00:29.6]} 28. Kh1 {[%clk 0:01:02.1]} 28... Rhd8 {[%clk 0:00:26.9]} 29. h3
{[%clk 0:00:59.8]} 29... Qb6 {[%clk 0:00:20.5]} 30. Qc4 {[%clk 0:00:52.7]} 30...
Rd4 {[%clk 0:00:19.8]} 31. Rc8+ {[%clk 0:00:48.9]} 31... Ka7 {[%clk 0:00:09.3]}
32. a5 {[%clk 0:00:26.8]} 32... Rd1+ {[%clk 0:00:04.9]} 33. Rxd1 {[%clk
0:00:24.8]} 33... Rxd1+ {[%clk 0:00:05.8]} 34. Kh2 {[%clk 0:00:23.7]} 34... Qg1+
{[%clk 0:00:06.4]} 35. Kg3 {[%clk 0:00:23.6]} 35... Qe1+ {[%clk 0:00:06.6]} 36.
Kh2 {[%clk 0:00:22.1]} 36... Qg1+ {[%clk 0:00:07.3]} 37. Kg3 {[%clk 0:00:22.1]}
37... Rd3+ {[%clk 0:00:04.9]} 38. Kh4 {[%clk 0:00:18.8]} 38... Qf2+ {[%clk
0:00:04.3]} 39. Kh5 {[%clk 0:00:14.6]} 39... Qe2+ {[%clk 0:00:02.4]} 40. Kh6
{[%clk 0:00:12.8]} 40... Rd7 {[%clk 0:00:01.6]} 41. Qc5+ {[%clk 0:00:10.7]}
41... Kb7 {[%clk 0:00:01.6]} 42. Rg8 {[%clk 0:00:05]} 42... Qd3 {[%clk
0:00:01.7]} 43. Qb6# {[%clk 0:00:04.6]} 1-0

[Event "Late-Titled-Tuesday-Blitz-January-16-2024"]
[Site "Chess.com"]
[Date "2024.01.16"]
[Round "7"]
[White "Sebastian"]
[Black "Makswolf200817"]
[Result "1-0"]
[WhiteElo "2992"]
[BlackElo "2753"]
[TimeControl "180+1"]
[EndTime "15:18:02 PST"]
[Termination "Sebastian won on time"]

1. e4 {[%clk 0:03:00.9]} 1... e6 {[%clk 0:02:59.4]} 2. d4 {[%clk 0:02:59.9]}
2... d5 {[%clk 0:02:59.7]} 3. Nc3 {[%clk 0:03:00.6]} 3... Bb4 {[%clk 0:02:59.4]}
4. e5 {[%clk 0:03:00.7]} 4... c5 {[%clk 0:02:59.8]} 5. a3 {[%clk 0:03:01.1]}
5... Bxc3+ {[%clk 0:03:00.5]} 6. bxc3 {[%clk 0:03:01.8]} 6... Qa5 {[%clk
0:03:01.3]} 7. Bd2 {[%clk 0:03:01.6]} 7... Qa4 {[%clk 0:03:01.9]} 8. Qg4 {[%clk
0:03:02.1]} 8... Kf8 {[%clk 0:03:02.2]} 9. h4 {[%clk 0:03:00.4]} 9... Nc6 {[%clk
0:03:02.7]} 10. h5 {[%clk 0:03:00.2]} 10... h6 {[%clk 0:03:03.4]} 11. Qd1 {[%clk
0:02:45.1]} 11... Nge7 {[%clk 0:03:01.9]} 12. Nf3 {[%clk 0:02:42.5]} 12... b6
{[%clk 0:02:57.7]} 13. Rh4 {[%clk 0:02:38.9]} 13... c4 {[%clk 0:02:53]} 14. Rf4
{[%clk 0:02:27.7]} 14... Ke8 {[%clk 0:02:49]} 15. g3 {[%clk 0:02:26.2]} 15...
Bd7 {[%clk 0:02:40.6]} 16. Nh4 {[%clk 0:02:26]} 16... Nf5 {[%clk 0:02:34.9]} 17.
Ng2 {[%clk 0:02:08.2]} 17... g5 {[%clk 0:02:15.4]} 18. Rf3 {[%clk 0:01:39.6]}
18... Rh7 {[%clk 0:01:56]} 19. Ne3 {[%clk 0:01:34]} 19... Nxe3 {[%clk
0:01:51.3]} 20. Bxe3 {[%clk 0:01:34.9]} 20... Kd8 {[%clk 0:01:47.9]} 21. g4
{[%clk 0:01:30.3]} 21... Kc7 {[%clk 0:01:47.7]} 22. Rg3 {[%clk 0:01:25.8]} 22...
Rf8 {[%clk 0:01:12.6]} 23. f4 {[%clk 0:01:25.6]} 23... gxf4 {[%clk 0:01:09.7]}
24. Bxf4 {[%clk 0:01:25.6]} 24... Kb7 {[%clk 0:01:10.4]} 25. Qd2 {[%clk
0:01:23.2]} 25... f5 {[%clk 0:00:47.7]} 26. Bxh6 {[%clk 0:01:15.4]} 26... Rg8
{[%clk 0:00:47.9]} 27. Be2 {[%clk 0:01:11]} 27... Be8 {[%clk 0:00:37.1]} 28. Bg5
{[%clk 0:00:56.7]} 28... fxg4 {[%clk 0:00:22]} 29. h6 {[%clk 0:00:56.8]} 29...
Bh5 {[%clk 0:00:16.1]} 30. Kf2 {[%clk 0:00:48.4]} 30... Ne7 {[%clk 0:00:15.8]}
31. Bxe7 {[%clk 0:00:45.2]} 31... Rxe7 {[%clk 0:00:15.8]} 32. Rh1 {[%clk
0:00:44.8]} 32... Bg6 {[%clk 0:00:15.8]} 33. Rxg4 {[%clk 0:00:44]} 33... Rf8+
{[%clk 0:00:16.3]} 34. Kg3 {[%clk 0:00:40.2]} 34... Bxc2 {[%clk 0:00:15.1]} 35.
Rf1 {[%clk 0:00:25.1]} 35... Rxf1 {[%clk 0:00:13]} 36. Bxf1 {[%clk 0:00:24.3]}
36... Bf5 {[%clk 0:00:12.1]} 37. Rg7 {[%clk 0:00:21.4]} 37... Qxa3 {[%clk
0:00:12.7]} 38. Bh3 {[%clk 0:00:17.8]} 38... Be4 {[%clk 0:00:11.6]} 39. Bxe6
{[%clk 0:00:15.9]} 39... Ka6 {[%clk 0:00:11.6]} 40. Rxe7 {[%clk 0:00:13.3]}
40... Qxe7 {[%clk 0:00:12.5]} 41. Bg4 {[%clk 0:00:13.1]} 41... Kb5 {[%clk
0:00:11.3]} 42. Qf4 {[%clk 0:00:11.9]} 42... a5 {[%clk 0:00:11.4]} 43. Bf5
{[%clk 0:00:12.3]} 43... Bxf5 {[%clk 0:00:06.7]} 44. Qxf5 {[%clk 0:00:12.4]}
44... a4 {[%clk 0:00:07.6]} 45. h7 {[%clk 0:00:06.5]} 45... Qe8 {[%clk
0:00:08.2]} 46. Qf6 {[%clk 0:00:05.6]} 46... a3 {[%clk 0:00:01.1]} 47. h8=Q
{[%clk 0:00:06.3]} 1-0

[Event "Late-Titled-Tuesday-Blitz-January-16-2024"]
[Site "Chess.com"]
[Date "2024.01.16"]
[Round "7"]
[White "BogdanDeac"]
[Black "Yaacovn"]
[Result "0-1"]
[WhiteElo "3022"]
[BlackElo "2910"]
[TimeControl "180+1"]
[EndTime "15:18:14 PST"]
[Termination "Yaacovn won by resignation"]

1. d4 {[%clk 0:03:00.9]} 1... Nf6 {[%clk 0:02:50]} 2. Bf4 {[%clk 0:03:00.5]}
2... e6 {[%clk 0:02:48.5]} 3. e3 {[%clk 0:03:00.7]} 3... Bd6 {[%clk 0:02:48.8]}
4. Bg3 {[%clk 0:02:54.3]} 4... b6 {[%clk 0:02:48.2]} 5. Nf3 {[%clk 0:02:36]}
5... Bb7 {[%clk 0:02:48.2]} 6. Nbd2 {[%clk 0:02:35.4]} 6... Be7 {[%clk
0:02:46.3]} 7. Bd3 {[%clk 0:02:29.6]} 7... d5 {[%clk 0:02:46.4]} 8. c4 {[%clk
0:02:29.3]} 8... c5 {[%clk 0:02:42.1]} 9. cxd5 {[%clk 0:02:24.8]} 9... Nxd5
{[%clk 0:02:42.3]} 10. Bb5+ {[%clk 0:02:10.5]} 10... Bc6 {[%clk 0:02:39]} 11.
Bxc6+ {[%clk 0:02:10.1]} 11... Nxc6 {[%clk 0:02:39.4]} 12. Qa4 {[%clk
0:02:10.3]} 12... Qd7 {[%clk 0:02:35.9]} 13. dxc5 {[%clk 0:02:10.3]} 13... Bxc5
{[%clk 0:02:31.8]} 14. a3 {[%clk 0:02:05.8]} 14... O-O {[%clk 0:02:28.5]} 15.
O-O {[%clk 0:02:00.7]} 15... Rfd8 {[%clk 0:02:26.1]} 16. Ne4 {[%clk 0:01:54.2]}
16... Be7 {[%clk 0:02:17.6]} 17. Rfd1 {[%clk 0:01:48.5]} 17... Ne5 {[%clk
0:02:07]} 18. Qxd7 {[%clk 0:01:44.4]} 18... Nxf3+ {[%clk 0:02:07.2]} 19. gxf3
{[%clk 0:01:41]} 19... Rxd7 {[%clk 0:02:07.6]} 20. Nc3 {[%clk 0:00:43.6]} 20...
Rad8 {[%clk 0:02:05.1]} 21. Nxd5 {[%clk 0:00:43.5]} 21... Rxd5 {[%clk
0:02:05.3]} 22. Rxd5 {[%clk 0:00:43.6]} 22... Rxd5 {[%clk 0:02:04.8]} 23. Rc1
{[%clk 0:00:44.1]} 23... Rc5 {[%clk 0:02:00.9]} 24. Rd1 {[%clk 0:00:44]} 24...
Rd5 {[%clk 0:02:01.3]} 25. Rxd5 {[%clk 0:00:43.9]} 25... exd5 {[%clk 0:02:01.5]}
26. Be5 {[%clk 0:00:44.5]} 26... b5 {[%clk 0:01:49.1]} 27. e4 {[%clk 0:00:38.2]}
27... dxe4 {[%clk 0:01:33.5]} 28. fxe4 {[%clk 0:00:39.1]} 28... g6 {[%clk
0:01:27.3]} 29. Kg2 {[%clk 0:00:30.8]} 29... a6 {[%clk 0:01:16.5]} 30. Bd4
{[%clk 0:00:20.7]} 30... f5 {[%clk 0:01:10.8]} 31. exf5 {[%clk 0:00:16.4]} 31...
gxf5 {[%clk 0:01:10.8]} 32. Kf3 {[%clk 0:00:17]} 32... Kf7 {[%clk 0:01:11.2]}
33. Ke3 {[%clk 0:00:17.2]} 33... Ke6 {[%clk 0:01:11.3]} 34. Kd3 {[%clk
0:00:15.7]} 34... Kd5 {[%clk 0:01:11.4]} 35. h3 {[%clk 0:00:15.6]} 35... a5
{[%clk 0:01:11.1]} 36. f3 {[%clk 0:00:15.6]} 36... a4 {[%clk 0:01:11.2]} 37. Bh8
{[%clk 0:00:15.8]} 37... Bc5 {[%clk 0:01:09.6]} 38. Bc3 {[%clk 0:00:15.7]} 38...
Bd6 {[%clk 0:01:06.9]} 39. Bg7 {[%clk 0:00:11.8]} 39... Be7 {[%clk 0:00:59.8]}
40. Bc3 {[%clk 0:00:11.2]} 40... Bf8 {[%clk 0:00:57.2]} 41. Bd4 {[%clk
0:00:09.9]} 41... Be7 {[%clk 0:00:49.7]} 42. Bc3 {[%clk 0:00:09.3]} 42... h5
{[%clk 0:00:48.9]} 43. Bd4 {[%clk 0:00:08.6]} 43... Bd6 {[%clk 0:00:48.9]} 44.
Bc3 {[%clk 0:00:08.7]} 44... Bc7 {[%clk 0:00:35.8]} 45. Bf6 {[%clk 0:00:08.1]}
45... Bd6 {[%clk 0:00:26.8]} 46. Bd4 {[%clk 0:00:07.4]} 46... Be5 {[%clk
0:00:17.2]} 47. Bxe5 {[%clk 0:00:07.5]} 47... Kxe5 {[%clk 0:00:18]} 48. Ke3
{[%clk 0:00:08.2]} 48... h4 {[%clk 0:00:18.1]} 49. f4+ {[%clk 0:00:07.1]} 49...
Kd5 {[%clk 0:00:18.4]} 50. Kd3 {[%clk 0:00:04]} 50... Kc5 {[%clk 0:00:17.9]} 51.
Kc3 {[%clk 0:00:04.3]} 51... b4+ {[%clk 0:00:13.1]} 52. axb4+ {[%clk 0:00:04.4]}
52... Kb5 {[%clk 0:00:13.5]} 53. Kd4 {[%clk 0:00:04.9]} 53... Kxb4 {[%clk
0:00:13.8]} 54. Ke5 {[%clk 0:00:05.5]} 54... Kb3 {[%clk 0:00:14.5]} 55. Kxf5
{[%clk 0:00:06.3]} 55... Kxb2 {[%clk 0:00:15.4]} 56. Kg5 {[%clk 0:00:07]} 56...
a3 {[%clk 0:00:16.3]} 57. f5 {[%clk 0:00:07.5]} 57... a2 {[%clk 0:00:17.2]} 58.
f6 {[%clk 0:00:08.4]} 58... a1=Q {[%clk 0:00:17.8]} 59. f7 {[%clk 0:00:09.3]}
59... Qa3 {[%clk 0:00:17.9]} 60. Kxh4 {[%clk 0:00:09.1]} 60... Qf8 {[%clk
0:00:18.5]} 61. Kg5 {[%clk 0:00:09.7]} 61... Kc3 {[%clk 0:00:18.6]} 62. h4
{[%clk 0:00:10.6]} 62... Kd4 {[%clk 0:00:19.1]} 63. h5 {[%clk 0:00:11.5]} 63...
Ke5 {[%clk 0:00:19.5]} 64. Kg6 {[%clk 0:00:12.2]} 64... Ke6 {[%clk 0:00:19.8]}
65. h6 {[%clk 0:00:13]} 65... Qxf7+ {[%clk 0:00:20.1]} 0-1